bitfinex/quotes_SOLUSD_20250821
["timestamp","ask_amount","ask_price","bid_price","bid_amount"]
[1755754138822,0.66,187.45,187.44,67.49486014]
[1755754139522,0.06,187.46,187.44,71.23539667]
[1755754139921,0.06,187.46,187.45,4.73485967]
[1755754143297,0.72,187.46,187.45,29.74053653]
[1755754143508,0.72,187.46,187.45,63.38]
[1755754143707,0.72,187.46,187.45,65.518066]
[1755754143996,0.72,187.46,187.45,65.66022757]
[1755754144212,0.72,187.46,187.45,69.4007641]
[1755754144399,0.72,187.46,187.45,69.54292567]
[1755754144604,0.06,187.46,187.45,69.54292567]
[1755754145622,0.72,187.46,187.45,65.80238914]
[1755754146000,0.72,187.46,187.45,65.518066]
[1755754148102,4.46053653,187.46,187.45,2.138066]
[1755754150023,0.72,187.46,187.45,2.138066]
[1755754150220,4.46053653,187.46,187.45,2.138066]
[1755754151132,4.46053653,187.46,187.44,0.03]
[1755754151420,4.40053653,187.45,187.44,2.168637]
[1755754151598,3.74053653,187.45,187.44,2.168637]
[1755754151805,4.40053653,187.45,187.44,2.168637]
[1755754154240,4.40053653,187.45,187.44,0.03]
[1755754158706,0.66,187.45,187.44,0.03]
[1755754159706,4.40053653,187.45,187.44,0.03]
[1755754162041,3.74053653,187.45,187.44,0.03]
[1755754162218,3.80053653,187.46,187.44,0.03]
[1755754162407,3.74053653,187.45,187.44,3.770536]
[1755754162607,4.40053653,187.45,187.44,3.770536]
[1755754163432,0.06,187.46,187.44,4.460536]
[1755754163837,0.06,187.46,187.45,0.69]
[1755754164338,0.06,187.46,187.45,2.828408]
[1755754168118,0.06,187.46,187.45,28.828408]
[1755754170214,0.06,187.46,187.45,32.85326767]
[1755754170533,0.06,187.46,187.45,28.138408]
[1755754171025,0.06,187.46,187.45,28.828408]
[1755754178316,0.06,187.46,187.45,2.828408]
[1755754179021,0.06,187.46,187.45,2.138408]
[1755754180445,0.06,187.46,187.45,28.138408]
[1755754180754,0.06,187.46,187.45,28.828408]
[1755754182424,0.06,187.46,187.45,28.138408]
[1755754184031,0.77,187.46,187.45,2.138408]
[1755754192652,0.77,187.46,187.44,0.03]
[1755754193163,0.77,187.46,187.44,3.830537]
[1755754193534,0.06,187.46,187.44,3.830537]
[1755754195847,0.06,187.46,187.44,0.03]
[1755754196166,0.06,187.46,187.45,2.454607]
[1755754198070,0.06,187.46,187.44,3.11460755]
[1755754198440,0.06,187.46,187.44,5.25301655]
[1755754199262,0.06,187.46,187.44,2.168409]
[1755754200265,0.72,187.46,187.44,2.168409]
[1755754201145,3.05460755,187.45,187.44,0.03]
[1755754201743,2.39460755,187.45,187.44,0.03]
[1755754201956,3.05460755,187.45,187.44,0.03]
[1755754202354,0.66,187.45,187.44,0.03]
[1755754202546,0.06,187.46,187.44,0.72]
[1755754202757,0.06,187.46,187.45,2.39460755]
[1755754203075,0.06,187.46,187.45,30.53278755]
[1755754203266,0.06,187.46,187.45,31.22278755]
[1755754206867,0.06,187.46,187.45,148.66711069]
[1755754207077,0.06,187.46,187.45,97.37589083]
[1755754207276,0.06,187.47,187.46,12.25736089]
[1755754207594,0.06,187.47,187.46,12.94736089]
[1755754208275,0.06,187.48,187.47,13.87991715]
[1755754208461,0.06,187.48,187.47,26.5429549]
[1755754210155,0.06,187.48,187.47,31.8771417]
[1755754210351,0.06,187.48,187.47,27.37835197]
[1755754210570,0.06,187.48,187.47,64.71835197]
[1755754211985,0.06,187.5,187.49,39.59559401]
[1755754212280,0.06,187.5,187.49,80.95704116]
[1755754212681,38.66,187.65,187.5,13.87991715]
[1755754212860,0.66,187.59,187.5,18.30704116]
[1755754213260,41.09712401,187.62,187.5,100.24407816]
[1755754213460,0.66,187.58,187.5,100.24407816]
[1755754213661,0.66,187.58,187.5,105.57741149]
[1755754213857,0.66,187.57,187.5,105.57741149]
[1755754215469,0.06,187.55,187.5,105.57741149]
[1755754216573,0.06,187.55,187.5,100.24407816]
[1755754216782,0.72,187.55,187.5,100.24407816]
[1755754216971,0.72,187.55,187.5,137.58407816]
[1755754217763,0.72,187.53,187.5,85.67416101]
[1755754217968,0.72,187.53,187.5,123.01416101]
[1755754218266,0.06,187.53,187.5,129.17965591]
[1755754218593,0.06,187.53,187.5,142.91741149]
[1755754219600,0.06,187.53,187.51,17.61704116]
[1755754219888,0.06,187.53,187.51,103.44009006]
[1755754220273,0.06,187.53,187.51,105.57689906]
[1755754224267,0.06,187.53,187.51,100.24385016]
[1755754225076,0.06,187.53,187.51,105.57689906]
[1755754228504,0.06,187.53,187.51,100.24385016]
[1755754228706,0.06,187.53,187.51,99.55385016]
[1755754228876,0.06,187.53,187.51,136.87385016]
[1755754229073,0.77,187.53,187.51,136.87385016]
[1755754229583,0.06,187.53,187.51,137.54385016]
[1755754230023,0.06,187.53,187.51,85.95825615]
[1755754230299,0.06,187.53,187.51,123.27825615]
[1755754232807,0.06,187.53,187.51,129.28130505]
[1755754236811,0.06,187.53,187.51,142.87689906]
[1755754238215,0.06,187.53,187.52,13.87991715]
[1755754238421,0.06,187.54,187.53,0.28432314]
[1755754238600,0.06,187.54,187.53,55.60704116]
[1755754238997,0.06,187.55,187.54,13.87991715]
[1755754239197,0.06,187.55,187.54,21.35416517]
[1755754239402,0.06,187.55,187.54,22.02416517]
[1755754239804,0.06,187.55,187.54,24.16074617]
[1755754240304,0.06,187.55,187.54,29.49294196]
[1755754241018,0.06,187.55,187.54,109.29294196]
[1755754241214,0.06,187.56,187.55,0.28432314]
[1755754241520,0.06,187.56,187.55,144.44351414]
[1755754241720,0.06,187.56,187.55,139.14416517]
[1755754241919,0.06,187.56,187.55,141.28063117]
[1755754242617,0.06,187.56,187.55,146.61254266]
[1755754243331,0.2,187.65,187.6,0.28432314]
[1755754243510,0.2,187.65,187.64,3.73712401]
[1755754244124,0.91,187.65,187.64,17.33271801]
[1755754245202,0.91,187.65,187.64,13.595594]
[1755754245402,0.91,187.65,187.63,29.73712401]
[1755754245713,0.2,187.65,187.64,26.0]
[1755754246329,0.2,187.65,187.64,29.73712401]
[1755754246693,0.91,187.65,187.64,29.73712401]
[1755754247104,0.91,187.65,187.64,30.02144715]
[1755754247294,0.91,187.65,187.64,41.32144715]
[1755754248325,0.2,187.65,187.64,41.32144715]
[1755754248920,0.2,187.65,187.64,43.45734415]
[1755754250008,0.91,187.65,187.64,43.45734415]
[1755754254421,0.2,187.65,187.64,43.45734415]
[1755754254627,0.2,187.65,187.64,44.14734415]
[1755754257925,0.89,187.65,187.64,123.25734415]
[1755754258315,0.2,187.65,187.64,123.25734415]
[1755754258829,0.89,187.65,187.64,123.25734415]
[1755754259331,0.2,187.65,187.64,123.25734415]
[1755754259715,0.89,187.65,187.64,123.25734415]
[1755754259925,0.89,187.65,187.64,82.22022014]
[1755754260132,0.89,187.65,187.64,119.50022014]
[1755754260318,0.89,187.65,187.64,123.23734415]
[1755754260803,0.89,187.65,187.64,119.215897]
[1755754261208,0.89,187.65,187.64,81.935897]
[1755754262219,0.2,187.65,187.64,85.67302101]
[1755754262402,0.89,187.65,187.64,2.135897]
[1755754262605,0.89,187.65,187.56,0.69]
[1755754262606,4.62712401,187.65,187.56,0.69]
[1755754262805,3.73712401,187.64,187.6,26.0]
[1755754263024,0.6,187.63,187.6,29.737124]
[1755754263214,4.33712401,187.63,187.6,29.737124]
[1755754263416,0.2,187.65,187.64,26.0]
[1755754263804,0.2,187.65,187.63,3.73712401]
[1755754264010,0.2,187.65,187.62,26.0]
[1755754264210,0.2,187.65,187.62,30.42712401]
[1755754264837,0.2,187.65,187.64,26.0]
[1755754266324,0.2,187.65,187.64,4.71144715]
[1755754267621,0.2,187.65,187.64,8.44857115]
[1755754269724,0.2,187.65,187.64,88.24857115]
[1755754272010,0.2,187.65,187.64,146.817124]
[1755754272215,0.8,187.65,187.64,109.537124]
[1755754272621,0.2,187.65,187.64,109.537124]
[1755754273442,0.2,187.65,187.64,110.227124]
[1755754274115,0.2,187.65,187.64,109.537124]
[1755754275043,0.2,187.65,187.64,109.82144714]
[1755754275738,0.2,187.65,187.64,30.02144714]
[1755754278546,0.2,187.65,187.64,34.44857115]
[1755754279824,0.2,187.65,187.64,8.44857115]
[1755754281628,0.2,187.65,187.64,88.24857115]
[1755754281958,0.2,187.65,187.64,125.52857115]
[1755754282961,0.2,187.65,187.64,125.55857115]
[1755754284241,0.2,187.65,187.64,130.88792523]
[1755754284436,0.2,187.65,187.64,144.48351924]
[1755754284842,0.2,187.65,187.64,135.41704115]
[1755754285165,0.2,187.65,187.64,139.15416516]
[1755754285324,0.2,187.65,187.64,144.48351924]
[1755754290241,0.2,187.65,187.64,148.22064325]
[1755754290641,0.2,187.65,187.64,144.48351924]
[1755754293529,0.2,187.65,187.64,87.58857115]
[1755754293844,0.2,187.65,187.64,7.50424801]
[1755754294046,0.2,187.65,187.64,44.78424801]
[1755754294235,0.2,187.65,187.64,45.06857115]
[1755754296256,0.2,187.65,187.64,45.77857115]
[1755754296456,0.2,187.65,187.64,45.06857115]
[1755754297548,0.2,187.65,187.64,45.77857115]
[1755754298064,0.2,187.65,187.64,64.70351924]
[1755754298357,0.2,187.65,187.64,68.44064325]
[1755754299365,0.2,187.65,187.64,148.24064325]
[1755754300451,13.59559401,187.79,187.7,0.28432314]
[1755754300649,0.6,187.74,187.73,3.73712401]
[1755754300960,0.6,187.75,187.73,3.73712401]
[1755754301255,0.6,187.77,187.74,3.73712401]
[1755754301447,0.6,187.77,187.74,40.99712401]
[1755754301635,0.6,187.77,187.74,3.73712401]
[1755754303346,0.6,187.79,187.75,3.73712401]
[1755754303537,0.6,187.79,187.76,26.0]
[1755754303861,0.6,187.78,187.76,26.0]
[1755754304266,13.59559401,187.84,187.73,42.011529]
[1755754304267,4.33712401,187.77,187.73,42.011529]
[1755754304566,4.33712401,187.76,187.73,16.011529]
[1755754304738,3.73712401,187.76,187.73,16.011529]
[1755754304934,0.6,187.75,187.73,16.011529]
[1755754305247,0.6,187.74,187.73,16.011529]
[1755754305558,0.6,187.74,187.73,42.011529]
[1755754306877,0.6,187.74,187.73,26.0]
[1755754307171,4.33712401,187.76,187.73,29.737124]
[1755754307465,0.6,187.75,187.73,29.737124]
[1755754307665,0.6,187.79,187.74,4.73144715]
[1755754307835,0.6,187.79,187.74,0.28432314]
[1755754308036,0.6,187.79,187.76,29.73712401]
[1755754308239,4.33712401,187.81,187.76,29.73712401]
[1755754308454,4.33712401,187.81,187.76,30.44712401]
[1755754308763,0.06,187.79,187.77,16.009819]
[1755754312755,0.66,187.79,187.76,26.0]
[1755754313352,3.73712401,187.77,187.76,26.0]
[1755754313551,0.6,187.77,187.76,26.0]
[1755754313751,4.33712401,187.77,187.76,26.0]
[1755754313962,3.73712401,187.77,187.76,26.0]
[1755754314971,0.66,187.79,187.76,26.0]
[1755754315266,4.39712401,187.79,187.76,26.0]
[1755754315466,3.79712401,187.79,187.76,26.0]
[1755754317583,3.73712401,187.77,187.73,3.737124]
[1755754317754,0.06,187.79,187.71,0.72]
[1755754317755,3.73712401,187.74,187.71,0.72]
[1755754317954,3.73712401,187.78,187.73,29.73712401]
[1755754318151,3.73712401,187.77,187.73,26.0]
[1755754318353,3.73712401,187.77,187.74,0.72]
[1755754318788,3.73712401,187.77,187.73,26.0]
[1755754318944,4.33712401,187.77,187.73,26.0]
[1755754319150,3.73712401,187.76,187.73,26.0]
[1755754320270,0.66,187.79,187.73,26.72]
[1755754320464,3.73712401,187.77,187.73,26.0]
[1755754320770,4.33712401,187.77,187.73,26.72]
[1755754321674,3.73712401,187.76,187.73,26.72]
[1755754322661,3.73712401,187.75,187.73,26.72]
[1755754323059,3.73712401,187.75,187.71,83.597124]
[1755754323278,3.73712401,187.72,187.7,79.8]
[1755754323677,4.33712401,187.71,187.68,3.737124]
[1755754323891,4.33712401,187.71,187.65,37.29]
[1755754323892,3.73712401,187.69,187.65,0.03]
[1755754324087,3.73712401,187.67,187.65,0.03]
[1755754324479,3.73712401,187.68,187.66,0.72]
[1755754324677,3.73712401,187.68,187.65,0.03]
[1755754325001,3.73712401,187.7,187.66,0.72]
[1755754326788,3.73712401,187.68,187.65,0.03]
[1755754327086,0.6,187.69,187.65,0.03]
[1755754327278,3.73712401,187.66,187.65,0.03]
[1755754327482,3.73712401,187.67,187.65,0.03]
[1755754327789,3.73712401,187.66,187.65,0.03]
[1755754328094,4.33712401,187.66,187.65,0.03]
[1755754329075,3.73712401,187.66,187.65,0.03]
[1755754329281,4.33712401,187.66,187.65,0.03]
[1755754329671,1.21080349,187.72,187.7,39.59559401]
[1755754329899,0.73,187.79,187.76,0.28432314]
[1755754330197,0.06,187.79,187.75,29.73712401]
[1755754330373,0.67,187.78,187.74,39.737124]
[1755754330574,3.73712401,187.75,187.68,26.28432314]
[1755754330887,0.67,187.74,187.7,4.02144715]
[1755754331096,0.67,187.74,187.71,13.595594]
[1755754331277,0.67,187.77,187.73,3.73712401]
[1755754331481,0.67,187.77,187.74,3.73712401]
[1755754331882,0.73,187.79,187.75,3.73712401]
[1755754332286,0.67,187.78,187.74,29.73712401]
[1755754332578,0.06,187.77,187.74,29.73712401]
[1755754333197,0.06,187.77,187.75,3.73712401]
[1755754333497,0.06,187.77,187.74,26.0]
[1755754333498,0.06,187.77,187.76,3.73712401]
[1755754333979,0.06,187.77,187.76,29.73712401]
[1755754335004,0.06,187.77,187.76,4.02144715]
[1755754335222,0.06,187.77,187.76,35.34739516]
[1755754335511,0.06,187.77,187.76,48.94298917]
[1755754335673,0.06,187.79,187.77,13.87991715]
[1755754336000,0.06,187.79,187.78,4.02144715]
[1755754336213,0.06,187.79,187.78,42.82144715]
[1755754336687,0.06,187.79,187.78,61.74242192]
[1755754337709,0.67,187.88,187.82,0.28432314]
[1755754337911,0.67,187.88,187.86,3.73712401]
[1755754338204,2.77668507,187.99,187.85,26.0]
[1755754338205,0.67,187.9,187.85,26.0]
[1755754338409,0.67,187.89,187.86,3.73712401]
[1755754338909,0.67,187.88,187.86,0.28432314]
[1755754339120,0.67,187.88,187.86,4.02144715]
[1755754339474,0.67,187.87,187.85,42.00128]
[1755754339710,0.67,187.86,187.85,26.0]
[1755754340008,0.67,187.86,187.83,16.28731014]
[1755754340175,0.67,187.85,187.83,16.28731014]
[1755754340379,0.67,187.84,187.82,68.51712401]
[1755754340584,0.67,187.84,187.82,72.25424801]
[1755754340779,3.73712401,187.88,187.82,72.25424801]
[1755754341103,0.67,187.89,187.85,26.0]
[1755754341293,0.67,187.89,187.85,29.73712401]
[1755754341495,0.67,187.89,187.86,3.73712401]
[1755754341687,3.73712401,187.91,187.85,29.73712401]
[1755754341876,0.67,187.88,187.85,29.73712401]
[1755754343404,4.44712401,187.91,187.86,3.73712401]
[1755754343586,13.65559401,187.95,187.87,3.73712401]
[1755754343775,3.73712401,187.92,187.87,3.73712401]
[1755754343977,3.73712401,187.92,187.86,26.0]
[1755754343978,0.71,187.91,187.86,26.0]
[1755754344281,0.71,187.9,187.86,29.73712401]
[1755754344891,0.71,187.89,187.86,29.73712401]
[1755754346295,0.71,187.89,187.86,33.47424801]
[1755754347790,0.71,187.89,187.86,29.73712401]
[1755754347992,0.71,187.89,187.87,3.737124]
[1755754348188,0.71,187.89,187.86,29.73712401]
[1755754348388,0.71,187.89,187.86,26.0]
[1755754348590,0.06,187.95,187.86,33.47424801]
[1755754348785,4.44712401,187.91,187.86,33.47424801]
[1755754348985,0.71,187.9,187.86,33.47424801]
[1755754349180,0.71,187.9,187.86,7.47424801]
[1755754349399,0.71,187.9,187.87,26.0]
[1755754349596,0.06,187.89,187.87,26.0]
[1755754349794,0.06,187.89,187.87,29.737124]
[1755754349981,0.77,187.89,187.87,29.737124]
[1755754350504,0.77,187.89,187.87,26.0]
[1755754350682,0.77,187.89,187.87,29.737124]
[1755754351010,0.71,187.88,187.87,26.0]
[1755754351582,0.06,187.89,187.87,26.0]
[1755754351909,0.77,187.89,187.87,26.0]
[1755754352089,0.06,187.89,187.87,26.0]
[1755754352601,0.06,187.89,187.87,29.73712401]
[1755754352996,0.06,187.89,187.87,26.0]
[1755754353311,0.06,187.89,187.88,3.73712401]
[1755754355435,0.06,187.89,187.87,29.737124]
[1755754355581,0.06,187.89,187.87,33.47424801]
[1755754356501,0.06,187.89,187.87,29.737124]
[1755754356705,0.06,187.89,187.87,33.47424801]
[1755754357717,0.06,187.89,187.88,3.73712401]
[1755754358514,0.06,187.89,187.87,68.217124]
[1755754358685,0.77,187.89,187.87,71.95424801]
[1755754359297,0.06,187.89,187.88,4.02144715]
[1755754359702,0.06,187.89,187.88,17.61704115]
[1755754362723,0.06,187.89,187.88,13.87991714]
[1755754363017,0.06,187.89,187.88,56.01704115]
[1755754364924,0.06,187.89,187.88,135.81704115]
[1755754365427,0.06,187.89,187.88,141.13958745]
[1755754365999,0.06,187.89,187.88,154.73518146]
[1755754366302,0.71,187.98,187.92,39.87991715]
[1755754366513,0.71,187.98,187.96,4.02144715]
[1755754366827,0.71,187.98,187.96,42.40144715]
[1755754367195,0.1,188.0,187.96,64.66432314]
[1755754367512,0.1,188.0,187.99,4.02144715]
[1755754367707,0.1,188.0,187.99,42.40144715]
[1755754368215,0.1,188.0,187.99,38.66432314]
[1755754369098,4.54712401,188.0,187.97,42.137124]
[1755754369320,0.71,187.99,187.97,38.4]
[1755754369729,0.71,187.98,187.97,38.4]
[1755754370100,0.71,187.98,187.96,41.991897]
[1755754370101,0.71,187.98,187.96,80.371897]
[1755754370502,3.73712401,187.99,187.96,64.38]
[1755754370810,0.71,187.97,187.96,64.38]
[1755754371011,4.44712401,187.97,187.95,3.737124]
[1755754371326,4.44712401,187.96,187.94,26.0]
[1755754371511,3.73712401,187.96,187.94,26.0]
[1755754371712,0.71,187.95,187.94,26.0]
[1755754371914,4.44712401,187.95,187.93,38.38]
[1755754372120,3.73712401,187.94,187.91,64.38]
[1755754372305,0.71,187.93,187.91,64.38]
[1755754372507,3.73712401,187.94,187.91,64.38]
[1755754372720,0.71,187.92,187.91,64.38]
[1755754373031,0.71,187.92,187.9,38.38]
[1755754373530,0.68,187.95,187.91,29.87928558]
[1755754373722,0.68,187.97,187.93,3.87928558]
[1755754373934,3.73712401,187.98,187.94,38.38]
[1755754374106,0.68,187.96,187.94,38.38]
[1755754374304,0.68,187.95,187.94,38.38]
[1755754377123,4.41712401,187.95,187.93,26.0]
[1755754377303,0.68,187.94,187.92,64.42]
[1755754377504,0.68,187.93,187.92,68.157124]
[1755754377932,4.41712401,187.93,187.92,3.737124]
[1755754378104,0.68,187.93,187.9,38.42]
[1755754378304,4.41712401,187.93,187.9,3.737124]
[1755754378510,3.73712401,187.93,187.9,29.737124]
[1755754378698,0.1,188.0,187.91,26.0]
[1755754378699,4.41712401,187.92,187.91,26.0]
[1755754379609,4.41712401,187.92,187.89,64.42]
[1755754379925,0.68,187.91,187.89,80.418721]
[1755754380149,0.68,187.9,187.89,80.418721]
[1755754380923,0.68,187.95,187.89,84.15584501]
[1755754381106,0.68,187.95,187.91,3.73712401]
[1755754381304,0.68,187.94,187.91,3.73712401]
[1755754381550,0.68,187.96,187.92,29.73712401]
[1755754381903,0.68,187.95,187.93,38.4]
[1755754382324,3.73712401,187.97,187.93,38.4]
[1755754382530,0.68,187.94,187.93,38.4]
[1755754382933,0.68,187.94,187.91,38.4]
[1755754383245,0.68,187.93,187.9,26.0]
[1755754383539,4.41712401,187.93,187.9,64.4]
[1755754384036,0.68,187.95,187.9,64.4]
[1755754384217,4.41712401,187.94,187.9,64.4]
[1755754384614,0.68,187.93,187.9,64.4]
[1755754384831,3.73712401,187.94,187.9,64.4]
[1755754385032,4.41712401,187.94,187.9,64.4]
[1755754385738,0.68,187.93,187.9,64.4]
[1755754386335,3.73712401,187.94,187.9,64.4]
[1755754386541,4.41712401,187.94,187.9,64.4]
[1755754386742,0.68,187.93,187.9,64.4]
[1755754387039,0.68,187.92,187.9,64.4]
[1755754387915,3.73712401,187.93,187.9,64.4]
[1755754388209,4.41712401,187.92,187.91,26.0]
[1755754389113,0.68,187.92,187.91,26.0]
[1755754390929,4.41712401,187.92,187.89,15.998721]
[1755754391134,4.41712401,187.91,187.88,38.32]
[1755754391337,4.41712401,187.9,187.87,13.737124]
[1755754391524,4.41712401,187.9,187.87,39.737124]
[1755754391848,4.41712401,187.9,187.87,26.0]
[1755754392516,0.68,187.9,187.87,26.0]
[1755754393136,0.68,187.92,187.9,26.0]
[1755754393325,0.68,187.91,187.9,26.0]
[1755754393918,0.68,187.91,187.89,26.0]
[1755754395644,0.68,187.9,187.89,26.0]
[1755754397145,4.41712401,187.9,187.84,83.56712401]
[1755754397326,3.73712401,187.88,187.87,26.0]
[1755754397526,4.41712401,187.88,187.87,26.0]
[1755754398128,0.68,187.88,187.87,26.0]
[1755754399755,4.41712401,187.9,187.87,26.0]
[1755754399954,4.41712401,187.9,187.89,0.03]
[1755754400158,3.73712401,187.9,187.89,0.03]
[1755754400358,51.83559401,187.96,187.89,0.03]
[1755754400672,3.73712401,187.9,187.84,0.03]
[1755754400878,3.73712401,187.85,187.84,0.03]
[1755754401370,4.41712401,187.85,187.84,0.03]
[1755754402687,18.01271802,187.85,187.84,0.03]
[1755754406361,4.41712401,187.85,187.84,0.03]
[1755754413070,3.73712401,187.87,187.84,0.03]
[1755754413541,3.73712401,187.88,187.84,0.03]
[1755754413741,41.95712401,187.89,187.84,3.80712401]
[1755754414155,42.67712401,187.89,187.84,3.80712401]
[1755754414352,41.95712401,187.89,187.84,3.80712401]
[1755754414953,42.67712401,187.89,187.84,3.80712401]
[1755754415159,38.94,187.89,187.84,3.80712401]
[1755754415359,42.67712401,187.89,187.84,3.80712401]
[1755754415561,42.67712401,187.89,187.84,0.07]
[1755754417883,42.67712401,187.89,187.84,0.03]
[1755754418183,4.45712401,187.88,187.84,0.03]
[1755754418873,3.73712401,187.88,187.84,0.03]
[1755754419185,0.72,187.87,187.84,0.03]
[1755754420459,38.22,187.89,187.84,4.09144715]
[1755754420660,4.45712401,187.9,187.85,3.77712401]
[1755754421080,4.45712401,187.89,187.84,19.76925801]
[1755754421390,4.51712401,187.91,187.85,4.06144715]
[1755754421682,3.73712401,187.9,187.85,20.06272715]
[1755754421860,4.45712401,187.9,187.85,20.06272715]
[1755754422058,4.45712401,187.9,187.85,20.02272715]
[1755754422257,4.45712401,187.9,187.85,20.06272715]
[1755754422480,0.06,187.91,187.86,0.04]
[1755754422657,3.79712401,187.91,187.87,0.28432314]
[1755754422859,4.51712401,187.91,187.87,0.28432314]
[1755754423072,4.51712401,187.91,187.88,26.0]
[1755754425688,0.72,187.9,187.89,26.0]
[1755754426055,0.72,187.9,187.86,79.8]
[1755754426451,0.72,187.9,187.89,26.0]
[1755754426986,13.59559401,187.89,187.84,0.03]
[1755754427157,3.73712401,187.85,187.84,0.03]
[1755754427878,4.45712401,187.85,187.84,0.03]
[1755754428581,3.73712401,187.87,187.84,0.03]
[1755754429159,4.45712401,187.87,187.84,0.03]
[1755754430384,41.81712401,187.88,187.84,0.03]
[1755754430789,42.53712401,187.88,187.84,0.03]
[1755754431785,38.8,187.88,187.84,0.03]
[1755754431986,38.8,187.88,187.84,26.03]
[1755754432287,42.53712401,187.88,187.84,26.03]
[1755754432785,0.72,187.87,187.84,0.03]
[1755754433970,4.42712401,187.86,187.84,0.03]
[1755754434276,3.73712401,187.85,187.84,0.03]
[1755754434480,4.42712401,187.85,187.84,0.03]
[1755754435066,0.69,187.85,187.84,0.03]
[1755754435254,4.42712401,187.85,187.84,0.03]
[1755754438581,18.02271802,187.85,187.84,0.03]
[1755754440875,4.42712401,187.85,187.84,0.03]
[1755754441291,4.42712401,187.85,187.83,0.03]
[1755754441496,7.47424802,187.83,187.82,0.03]
[1755754442010,4.42712401,187.83,187.82,0.03]
[1755754442775,21.75984203,187.83,187.82,0.03]
[1755754444607,8.16424802,187.83,187.82,0.03]
[1755754444783,42.48712401,187.83,187.82,0.03]
[1755754446305,46.22424802,187.83,187.82,0.03]
[1755754446602,59.81984203,187.83,187.82,0.03]
[1755754448209,59.81984203,187.83,187.8,0.03]
[1755754448512,17.33271802,187.81,187.8,0.03]
[1755754449088,18.02271802,187.81,187.8,0.03]
[1755754456496,18.30704116,187.81,187.8,0.03]
[1755754457229,0.28432314,187.8,187.78,0.03]
[1755754457421,41.73712401,187.79,187.78,0.03]
[1755754457740,42.42712401,187.79,187.78,0.03]
[1755754459891,56.30704116,187.79,187.77,0.03]
[1755754460211,28.30704116,187.78,187.76,0.03]
[1755754460410,81.61704116,187.77,187.76,0.03]
[1755754460636,21.35416517,187.76,187.72,0.03]
[1755754460813,13.59559401,187.74,187.72,0.03]
[1755754461019,55.35271802,187.73,187.72,0.03]
[1755754461324,56.04271802,187.73,187.72,0.03]
[1755754463234,56.32704116,187.73,187.72,0.03]
[1755754464523,13.87991715,187.72,187.69,0.2]
[1755754464825,17.33271802,187.7,187.69,0.2]
[1755754465220,18.03271802,187.7,187.69,0.2]
[1755754469116,18.31704116,187.7,187.69,0.2]
[1755754469431,13.87991715,187.69,187.68,0.03]
[1755754469733,56.29704116,187.69,187.68,0.03]
[1755754473428,0.28432314,187.68,187.65,0.03]
[1755754473641,17.33271802,187.66,187.65,0.03]
[1755754473830,55.29271802,187.66,187.65,0.03]
[1755754474228,55.99271802,187.66,187.65,0.03]
[1755754475140,17.33271802,187.66,187.65,0.03]
[1755754475439,55.27271802,187.66,187.65,0.03]
[1755754476118,51.53559401,187.66,187.65,0.03]
[1755754476336,55.27271802,187.66,187.65,0.03]
[1755754476544,26.0,187.71,187.65,0.42]
[1755754476723,55.27271802,187.7,187.65,0.42]
[1755754477054,37.94,187.69,187.65,0.42]